Cogmind - Beta 13 @@@ ROGUE MODE // 2024.05.07 @ 18:28:18 Player: fothu Result: Destroyed by S-10 Pest with Light Assault Rifle Performance ------------- Evolutions (1) 500 Regions Visited (2) 400 Robots Destroyed (29) 145 Value Destroyed (584) 584 Prototype IDs (1) 20 Alien Tech Used (0) 0 Bonus (0) 0 TOTAL SCORE: 1649 Bonus ------- None Cogmind --------- Core Integrity 0/400 Matter 132/450 Energy 92/100 System Corruption 0% Temperature Cool (0) Movement Flying (390) Ox5 Location -9/Materials Parts ------- > --- POWER (2) -------- (None) > --- PROPULSION (2) --- Improved Flight Unit > --- UTILITY (2) ------ Large Storage Unit Large Matter Pod > --- WEAPON (3) ------- Small Laser Light EM Pulse Cannon > --- INVENTORY (15) --- Faulty Improved Flight Unit High-capacity Matter Pod (0) Peak State ------------ > --- POWER ------------ Ion Engine > --- PROPULSION ------- Improved Flight Unit > --- UTILITY ---------- Structural Scanner Light Armor Plating > --- WEAPON ----------- Light EM Pulse Cannon Light EM Pulse Cannon Light EM Pulse Cannon > --- INVENTORY -------- Improved Flight Unit Large Storage Unit Large Matter Pod [Rating: 12] Favorites ----------- Power Ion Engine Engine Ion Engine Propulsion Wheel Wheel Wheel Flight Unit Improved Flight Unit Utility Structural Scanner Device Structural Scanner Storage Large Storage Unit Protection Light Armor Plating Weapon Assault Rifle Energy Gun Small Laser Energy Cannon Light EM Pulse Cannon Ballistic Gun Assault Rifle Launcher Grenade Launcher Build | -11 -10 -9 ------- Run | Yrd Mat Mat Slots Evolved 2 | . . 2 Power 1 | . . 1 Propulsion . | . . . Utility . | . . . Weapon 1 | . . 1 Parts Attached 26 | 8 4 14 Power 3 | 2 . 1 Engine 3 | 2 . 1 Core . | . . . Reactor . | . . . Propulsion 4 | 3 . 1 Treads . | . . . Leg . | . . . Wheel 3 | 3 . . Hover . | . . . Flight 1 | . . 1 Utility 5 | 1 1 3 Device 2 | 1 1 . Storage 2 | . . 2 Processor . | . . . Hackware . | . . . Protection 1 | . . 1 Artifact . | . . . Weapon 14 | 2 3 9 Energy Gun 2 | . . 2 Energy Cannon 6 | . . 6 Ballistic Gun 5 | 2 2 1 Ballistic Cannon . | . . . Launcher 1 | . 1 . Special Weapon . | . . . Impact Weapon . | . . . Slashing Weapon . | . . . Piercing Weapon . | . . . Special Melee Weapon . | . . . Unidentified Prototypes 1 | . . 1 Parts Lost 14 | . . 14 Power 2 | . . 2 Propulsion 2 | . . 2 Utility 3 | . . 3 Weapon 7 | . . 7 Highest Loss Streak 7 | . . 7 To Critical Strikes 1 | . . 1 Average Slot Usage (%) 71 | . 98 54 Engine 8 | . 14 5 Wheel 14 | . 28 5 Flight 4 | . . 7 Device 14 | . 26 7 Storage 4 | . . 7 Energy Gun 2 | . . 4 Energy Cannon 4 | . . 7 Ballistic Gun 10 | . 19 5 Launcher 4 | . 8 2 Naked Turns . | . . . Heaviest Build 28 | 9 12 28 Greatest Support 20 | 20 20 20 Greatest Overweight (x) 5 | . . 5 Average Overweight (x) . | . . 1 Largest Inventory Capacity 15 | 5 5 15 Average Capacity 7 | 5 5 9 Most Carried 5 | 3 5 5 Average Carried 2 | . 4 2 Final Capacity 15 | 5 5 15 Final Carried 4 | 1 4 2 Class Distribution -------------------- 96% | Mutant 3% | Skirmisher Dominant Class ---------------- Mutant | -10/Materials Mutant | -9/Materials Resources | -11 -10 -9 ----------- Run | Yrd Mat Mat Matter Collected 585 | 321 113 151 Remotely . | . . . Salvage Created 619 | 106 187 326 Parts 64 | 17 19 28 Haulers Intercepted . | . . . Recyclers Shooed 1 | . . 1 Parts Field Recycled . | . . . Retrieved Matter . | . . . Parts Self-Destructed . | . . . Prevented . | . . . Kills | -11 -10 -9 ------- Run | Yrd Mat Mat Combat Hostiles Destroyed 21 | 1 10 10 Guns 10 | 1 5 4 Cannons 4 | . . 4 AOE 7 | . 5 2 Classes Destroyed 6 | 3 2 1 Worker 2 | 1 . 1 Builder 1 | . . 1 Tunneler 3 | 3 . . Watcher 2 | . 2 . Swarmer 9 | . 6 3 Grunt 12 | 1 4 7 Best Kill Streak 5 | 4 4 5 Combat Bots Only 4 | 1 4 3 Max Kills in Single Turn 2 | 1 2 2 Gunslinging . | . . . Exploded 2 | . 2 1 Melee . | . . . Uniques/NPCs Destroyed . | . . . Combat | -11 -10 -9 -------- Run | Yrd Mat Mat Hostile Shots Fired 206 | 4 41 161 Missed 56 | . 17 39 Damage Taken 1573 | 44 245 1284 Core 467 | 22 39 406 Absorbed by Shields . | . . . Core Remaining (%) 83 | 91 75 . Volleys Fired 72 | 11 24 37 Largest 3 | 2 2 3 Hottest 177 | 40 50 177 Shots Fired 126 | 22 42 62 Gun 100 | 22 32 46 Cannon 12 | . . 12 Launcher 14 | . 10 4 Special . | . . . Kinetic 87 | 22 32 33 Thermal 13 | . . 13 Explosive 14 | . 10 4 Electromagnetic 12 | . . 12 Robot Hit Streak 10 | 3 4 10 Robot Miss Streak 3 | 3 2 3 Penetration Max . | . . . Secondary Targets 2 | . 2 . Max Gunslinging Chain 1 | . 1 . Shots Hit Robots 56 | 9 16 31 Core Hits 49 | 6 20 23 Critical Kills . | . . . Critical Parts Destroyed . | . . . Critical Strikes 2 | . . 2 Burn 2 | . . 2 Melee Attacks . | . . . Impact . | . . . Slashing . | . . . Piercing . | . . . Sneak Attacks . | . . . Combat Hostiles . | . . . Follow-up Attacks . | . . . Damage Inflicted 1562 | 107 635 820 Guns 585 | 107 164 314 Cannons 130 | . . 130 Explosions 847 | . 471 376 Melee . | . . . Ramming . | . . . Kinetic 478 | 107 164 207 Thermal 107 | . . 107 Explosive 847 | . 471 376 Electromagnetic 130 | . . 130 Impact . | . . . Slashing . | . . . Piercing . | . . . Highest Corruption . | . . . Average Corruption . | . . . Corruption Purged . | . . . Corruption Blocked . | . . . Overload Shots . | . . . Overflow Damage 15 | . . 15 Projectiles . | . . . Explosions 15 | . . 15 Melee . | . . . Knockbacks . | . . . Impact . | . . . Kinetic . | . . . Secondary . | . . . Self-Inflicted Damage 40 | . 40 . Shots 1 | . 1 . Rammed . | . . . Targets Rammed . | . . . Kicked . | . . . Crushed . | . . . Highest Temperature 234 | 12 8 234 Average Temperature 50 | 7 3 55 Received Heat Transfer 507 | 24 48 435 Siege Activations . | . . . Robots Corrupted . | . . . Combat Hostiles . | . . . Parts Fried . | . . . Impact Corruptions . | . . . Robots Melted . | . . . Combat Hostiles . | . . . Parts Melted 1 | . . 1 Heat Transferred 420 | . . 420 Parts Sabotaged . | . . . Parts Stolen . | . . . Parts Stripped . | . . . Power Chain Reactions . | . . . Alert | -11 -10 -9 ------- Run | Yrd Mat Mat Peak Influence 354 | 40 354 276 Initial 149 | . 26 149 Average 171 | 16 178 212 Maximum Alert Level 1 | . 1 1 Low Security (%) 47 | 100 45 32 Level 1 52 | . 54 67 Level 2 . | . . . Level 3 . | . . . Level 4 . | . . . Level 5 . | . . . High Security . | . . . Max Security . | . . . Squads Dispatched 2 | . 1 1 Investigation 1 | . 1 . Extermination . | . . . Reinforcement 1 | . . 1 Assault . | . . . Garrison . | . . . Intercept . | . . . Searches Triggered . | . . . Construction Impeded 1 | . . 1 Haulers Reinforced . | . . . Active Scanning Responses . | . . . Cargo Convoy Interrupts . | . . . Stealth | -11 -10 -9 --------- Run | Yrd Mat Mat Distress Signals . | . . . Communications Jammed . | . . . Distress Signals . | . . . Times Spotted 26 | 1 13 12 Peak Tracking Total 4 | 1 4 4 Tactical Retreats 1 | . . 1 Traps | -11 -10 -9 ------- Run | Yrd Mat Mat Traps Triggered 1 | . 1 . Indirectly . | . . . Trap Hack Attempts . | . . . Triggered . | . . . Disarmed . | . . . Reprogrammed . | . . . Reused . | . . . Traps Extracted . | . . . Installed . | . . . Triggered . | . . . Machines | -11 -10 -9 ---------- Run | Yrd Mat Mat Machines Disabled . | . . . Max in Single Turn . | . . . Machines Repaired . | . . . Machines Dismantled . | . . . Machines Sabotaged . | . . . Overloaded Fab Kills . | . . . Hacking | -11 -10 -9 --------- Run | Yrd Mat Mat Machines Accessed 1 | . . 1 Terminals 1 | . . 1 Fabricators . | . . . Repair Stations . | . . . Recycling Units . | . . . Scanalyzers . | . . . Garrison Access . | . . . Total Hacks 2 | . . 2 Successful 1 | . . 1 Failed 1 | . . 1 Catastrophic 1 | . . 1 Database Lockouts . | . . . Manual . | . . . Terminals 2 | . . 2 Fabricators . | . . . Repair Stations . | . . . Recycling Units . | . . . Scanalyzers . | . . . Garrison Access . | . . . Terminal Hacks 1 | . . 1 Record 1 | . . 1 Fabricator Hacks . | . . . Repair Station Hacks . | . . . Recycling Unit Hacks . | . . . Scanalyzer . | . . . Garrison Access Hacks . | . . . Unauthorized Hacks . | . . . Terminals . | . . . Fabricators . | . . . Repair Stations . | . . . Recycling Units . | . . . Scanalyzers . | . . . Garrison Access . | . . . Data Cores Recovered . | . . . Used . | . . . Hacking Detections 1 | . . 1 Full Trace Events . | . . . Feedback Events . | . . . Feedback Blocked . | . . . Robot Schematics Acquired . | . . . Robots Built . | . . . Authchips . | . . . Time . | . . . Total Robot Build Rating . | . . . Part Schematics Acquired . | . . . Parts Built . | . . . Authchips . | . . . Time . | . . . Total Part Build Rating . | . . . Parts Repaired . | . . . Time . | . . . Parts Recycled . | . . . Recycled Matter . | . . . Retrieved Matter . | . . . Retrieved Components . | . . . Parts Scanalyzed . | . . . Part Schematics Acquired . | . . . Parts Damaged . | . . . Bothacking | -11 -10 -9 ------------ Run | Yrd Mat Mat Used RIF Installer . | . . . Robots Hacked . | . . . Non-combat . | . . . Combat . | . . . Robot Hacks Applied . | . . . Relay Couplers Released . | . . . Fabnet Peak Effective % . | . . . Robots Rewired . | . . . Allies Hacked . | . . . Hacks Repelled . | . . . Allies | -11 -10 -9 -------- Run | Yrd Mat Mat Total Allies . | . . . Largest Group . | . . . Highest-Rated Group . | . . . Highest-Rated Ally . | . . . Total Orders . | . . . Ally Attacks . | . . . Total Damage . | . . . Kills . | . . . Allies Corrupted . | . . . Allies Melted . | . . . Intel | -11 -10 -9 ------- Run | Yrd Mat Mat Robot Analysis Total . | . . . Derelict Logs Recovered . | . . . Drone Launches . | . . . Drone Recoveries . | . . . Exploration | -11 -10 -9 ------------- Run | Yrd Mat Mat Turns Passed 745 | 116 240 389 Spaces Moved 448 | 90 204 154 Core 36 | 18 . 18 Treads . | . . . Legs . | . . . Wheels 350 | 72 204 74 Hover . | . . . Flight 62 | . . 62 Fastest Speed 40 | 50 80 40 Average Speed 111 | 74 80 176 Slowest Speed 390 | 80 80 390 Overloaded Moves . | . . . Propulsion Burnouts . | . . . Robots Hopped . | . . . Cave-ins Triggered . | . . . Exploration Rate (%) 14 | 6 27 11 Regions Visited 2 Branch Regions . Pre-discovered Areas . | . . . Known Exits Taken . | . . . Unknown Exits Taken 2 | 1 1 . Scrap Searched . | . . . Spaces Dug 9 | . 9 . Terrain Destroyed 88 | . 72 16 Melee . | . . . Projectile . | . . . AOE 88 | . 72 16 Terrain Rammed . | . . . Walls Destroyed . | . . . Machines Disabled . | . . . Actions | -11 -10 -9 --------- Run | Yrd Mat Mat Total 577 | 119 240 218 Wait . | . . . Move 446 | 89 203 154 Hop . | . . . Pick Up 26 | 9 6 11 Fast Attach . | . . . Attach 20 | 6 1 13 Detach 1 | . . 1 Swap 6 | 2 3 1 Drop 6 | 2 3 1 Fire 72 | 11 24 37 Melee . | . . . Ram . | . . . Kick . | . . . Crush . | . . . Escape Stasis . | . . . Rewire . | . . . Trap . | . . . Miscellaneous . | . . . Route ------- -11/Scrapyard -10/Materials -9/Materials History --------- Turn | Location | Event 2 | -11/Scrapyard | Met Revision 17 49 | -11/Scrapyard | Discovered new exit (range 8) 117 | -11/Scrapyard | Entered Materials 276 | -10/Materials | Discovered new exit (range 16) 308 | -10/Materials | Build established: Mutant 357 | -10/Materials | Entered another Materials area 357 | -9/Materials | Evolved 2 slots: Power x1, Weapon x1 483 | -9/Materials | Core integrity fell below 50% 507 | -9/Materials | Lost 7 parts (1p2n1u3w) 561 | -9/Materials | Core integrity fell below 20% 642 | -9/Materials | Lost 6 parts (2u4w) 746 | -9/Materials | Destroyed by S-10 Pest with Light Assault Rifle Last Messages --------------- S-10 Pest destroyed. Acquired 31 matter. R-06 Scavenger collects Lgt. Ion Engine. R-06 Scavenger collects Lgt. Assault Rifle. R-06 Scavenger collects Corrupted Flight Unit. Acquired Lgt. EM Pulse Cannon. R-06 Scavenger collects Aluminum Leg. Acquired 50 matter. Acquired 9 matter. K-01 Serf collects debris. Acquired Hcp. Matter Pod. K-01 Serf collects debris. Acquired 14 matter. K-01 Serf collects debris. Acquired 47 matter. K-01 Serf collects debris. S-10 Pest destroyed. K-01 Serf collects debris. R-06 Scavenger collects Flight Unit. [Achievement: First Step to Greatness] Map ----- +----------------------------------------------------+ | ?????????????????????????????????????????????????? | | ?????????????????????????????????????????????????? | | ?????????????????????????????????????????????????? | | ?????????????????????????????????????????????????? | | ?????????????????????????????????????????????????? | | ?????????????????????????????????????????????????? | | ?????????????????????????????????????????????????? | | ?????????????????????????????????????????????????? | | ?????????????????????????????????????????????????? | | ???## ???????????????????????????????????????????? | | ##### ???????????????????????????????????????????? | | ##### ???????????????????????????????????????????? | | # # ??????????????????????????????????????????? | | ##### ?????????? ??????????????????????? | | ??????????##########??????????????????????? | | ?????????## # ??????????????????????? | | ?????????## # ??????????????????????? | | ? ] #???????## # ????????#########?????? | | ##???????## # ????????#########?????? | | "T" #???????## # ????????## ????? | | """ ########## # """ """ ## """"" ##??? | | %%#############+############## """"" ##??? | | ur # """"" ##??? | | #+## r # ##??? | | ################ s %* # """"" ##??? | | ?? ################# @####### + """"" ????? | | ?????????????????### ####### # """"" ##??? | | ??????????????????##! !##???## # ####? | | ??????????????????###!! !###???## #############? | | ??????????????????##########???## ##? | | ???????????????????########????## ##? | | ??????????????????????????????### ##? | | ??????????????????????????????######+######+#####? | | ??????????????????????????????## # ##? | | ??????????????????????????????## # "T" ##? | | ??????????????????????????????##""" + ##? | | ??????????????????????????????##""" # ##? | | ??????????????????????????????##""" # ##? | | ??????????????????????????????##""" # ##? | | ??????????????????????????????##""" #########? | | ??????????????????????????????## #########? | | ??????????????????????????????## [ ##???????? | | ??????????????????????????????############???????? | | ??????????????????????????????############???????? | | ?????????????????????????????????????????????????? | | ?????????????????????????????????????????????????? | | | | | | | | | +----------------------------------------------------+ Best States ------------- Heat Dissipation 28 Energy Generation 15 Energy Capacity 400 Matter Stores 300 Matter Capacity 450 Sight Range 16 Terrain Scan Density 10 Armor Coverage 150 Evasion (%) 50 Item Schematics ----------------- None Robot Schematics ------------------ None Fabricated ------------ Nothing Alien Tech Used ----------------- None Achievements -------------- First Step to Greatness Risk Taker Challenges ------------ None Game ------ Seed ParticleColdBooster Manual? 0 Play Time 00:17:32 Cumulative 0.6 hours Start 2024.05.07 @ 18:12:33 End 2024.05.07 @ 18:28:18 Sessions 1 Manual Loads 0 Difficulty Rogue Special Mode None Game No. 2 Rogue 1 Adventurer 1 Explorer 0 Win Type - Total 0 Types 0/0/0/0/0/0/0/0/0 Lore% 0 Gallery% 2 Achievement% 2 Wizard Run 0 Options --------- Layout 1 ASCII 0 Keyboard 0 Movement Mouse Keybinds 0 Fullscreen 2 Font 32/SmallcapsGlow Map View 50x40 Zoom Use 0% Tactical HUD 0 Map Filters NONE Filters NONE Steam 1 RUN: 399ded7e-0521-4b3d-9d86-167921bfc343